fUSD/lending_fUSD_20250610
["ID","MTS","AMOUNT","RATE_DAILY","PERIOD"]
[365270773,1749570659832,-190.369157,0.00018082,2]
[365270775,1749570659842,-190.369157,0.00018082,2]
[365270777,1749570659851,-472.618288,0.00018082,2]
[365270779,1749570659862,-472.618288,0.00018082,2]
[365270781,1749570659872,-151.0,0.00018082,2]
[365270783,1749570659881,-152.942544,0.00018082,2]
[365270785,1749570659891,-152.94254,0.00018082,2]
[365270787,1749570659900,-354.435439,0.00018082,2]
[365270789,1749570659911,-354.435439,0.00018082,2]
[365270791,1749570659921,-342.06034936,0.00018082,2]
[365270793,1749570659931,-490.0,0.00018082,2]
[365270795,1749570659940,-151.0,0.00018082,2]
[365270797,1749570659951,-1168.37988035,0.00018082,2]
[365270799,1749570659962,-151.0,0.00018082,2]
[365270801,1749570659971,-603.49,0.00018082,2]
[365270803,1749570659981,-490.0,0.00018082,2]
[365270805,1749570659991,-642.66,0.00018082,2]
[365270807,1749570660000,-490.0,0.00018082,2]
[365270809,1749570660010,-983.05,0.00018082,2]
[365270811,1749570660020,-490.0,0.00018082,2]
[365270813,1749570660030,-980.31,0.00018082,2]
[365270814,1749570660040,-490.0,0.00018082,2]
[365270815,1749570660049,-490.0,0.00018082,2]
[365270816,1749570660060,-490.0,0.00018082,2]
[365270817,1749570660070,-2100.58,0.00018082,2]
[365270818,1749570660080,-490.0,0.00018082,2]
[365270819,1749570660090,-490.0,0.00018082,2]
[365270820,1749570660101,-490.0,0.00018082,2]
[365270821,1749570660110,-490.0,0.00018082,2]
[365270822,1749570660120,-612.37,0.00018082,2]
[365270823,1749570660130,-490.0,0.00018082,2]
[365270824,1749570660140,-490.0,0.00018082,2]
[365270826,1749570660149,-520.05,0.00018082,2]
[365270828,1749570660162,-1277.47,0.00018082,2]
[365270830,1749570660172,-2101.06,0.00018082,2]
[365270832,1749570660181,-1048.02,0.00018082,2]
[365270834,1749570660191,-490.0,0.00018082,2]
[365270835,1749570660201,-490.0,0.00018082,2]
[365270837,1749570660211,-490.0,0.00018082,2]
[365270838,1749570660220,-9735.04,0.00018082,2]
[365270839,1749570660230,-490.0,0.00018082,2]
[365270840,1749570660240,-490.0,0.00018082,2]
[365270841,1749570660249,-490.0,0.00018082,2]
[365270842,1749570660259,-1958.36,0.00018082,2]
[365270843,1749570660269,-505.2,0.00018082,2]
[365270844,1749570660279,-1516.99087426,0.000181,2]
[365270845,1749570660289,-151.0,0.000181,2]
[365270846,1749570660299,-162.517009,0.000181,2]
[365270847,1749570660308,-162.517009,0.000181,2]
[365270848,1749570660318,-170.29964,0.000181,2]
[365270849,1749570660327,-170.29964,0.000181,2]
[365270850,1749570660337,-1094.0491748,0.00018107,2]
[365270851,1749570660348,-697.93535559,0.0001811,2]
[365270852,1749570660358,-1000.0,0.00018136,2]
[365270853,1749570660367,-151.0,0.00018141,2]
[365270854,1749570660376,-158.450287,0.00018151,2]
[365270855,1749570660385,-158.450287,0.00018151,2]
[365270856,1749570660395,-1094.0491748,0.00018176,2]
[365270857,1749570660405,-492.0,0.00018182,2]
[365270858,1749570660415,-6183.75,0.000182,2]
[365270859,1749570660424,-3663.75,0.000182,2]
[365270860,1749570660434,-1876.89,0.000182,2]
[365270861,1749570660446,-298.91,0.000182,2]
[365270862,1749570660455,-1951.54759,0.000182,2]
[365270863,1749570660465,-258.876173,0.000182,2]
[365270864,1749570660476,-258.876173,0.000182,2]
[365270865,1749570660487,-196.879594,0.000182,2]
[365270866,1749570660497,-196.879594,0.000182,2]
[365270867,1749570660507,-151.0,0.000182,2]
[365270868,1749570660517,-212.855355,0.000182,2]
[365270869,1749570660527,-212.855355,0.000182,2]
[365270870,1749570660536,-152.0,0.0001821,4]
[365270871,1749570660545,-309.77074437,0.00018233,2]
[365270872,1749570660555,-1094.0491748,0.00018245,2]
[365270873,1749570660565,-158.674,0.00018246,2]
[365270874,1749570660574,-151.0,0.00018246,2]
[365270875,1749570660583,-151.0,0.00018246,2]
[365270876,1749570660592,-388.714748,0.00018246,2]
[365270877,1749570660602,-388.714754,0.00018246,2]
[365270878,1749570660611,-190.369157,0.00018246,2]
[365270879,1749570660621,-190.369158,0.00018246,2]
[365270880,1749570660631,-151.0,0.00018246,2]
[365270881,1749570660640,-490.0,0.00018246,2]
[365270882,1749570660650,-603.49,0.00018246,2]
[365270883,1749570660660,-490.0,0.00018246,2]
[365270884,1749570660670,-642.66,0.00018246,2]
[365270885,1749570660679,-490.0,0.00018246,2]
[365270886,1749570660689,-983.05,0.00018246,2]
[365270887,1749570660700,-490.0,0.00018246,2]
[365270888,1749570660710,-980.31,0.00018246,2]
[365270889,1749570660720,-490.0,0.00018246,2]
[365270890,1749570660730,-580.32,0.00018246,2]
[365270891,1749570660739,-490.0,0.00018246,2]
[365270892,1749570660749,-2100.58,0.00018246,2]
[365270893,1749570660758,-490.0,0.00018246,2]
[365270894,1749570660768,-490.0,0.00018246,2]
[365270895,1749570660778,-490.0,0.00018246,2]
[365270896,1749570660788,-490.0,0.00018246,2]
[365270897,1749570660797,-612.37,0.00018246,2]
[365270898,1749570660807,-490.0,0.00018246,2]
[365270899,1749570660817,-490.0,0.00018246,2]
[365270900,1749570660826,-520.05,0.00018246,2]
[365270901,1749570660836,-1277.47,0.00018246,2]
[365270902,1749570660847,-2101.06,0.00018246,2]
[365270903,1749570660857,-1048.02,0.00018246,2]
[365270904,1749570660866,-490.0,0.00018246,2]
[365270905,1749570660876,-490.0,0.00018246,2]
[365270906,1749570660885,-490.0,0.00018246,2]
[365270907,1749570660895,-9735.04,0.00018246,2]
[365270908,1749570660905,-490.0,0.00018246,2]
[365270909,1749570660914,-390.92406,0.00018246,2]
[365270910,1749570660924,-490.0,0.00018246,2]
[365270911,1749570660934,-390.92406,0.00018246,2]
[365270912,1749570660944,-490.0,0.00018246,2]
[365270913,1749570660953,-215.742022,0.00018246,2]
[365270914,1749570660963,-1958.36,0.00018246,2]
[365270915,1749570660973,-505.2,0.00018246,2]
[365270916,1749570660982,-492.0,0.0001826,2]
[365270917,1749570660992,-234.0,0.00018301,5]
[365270918,1749570661006,-502.92160923,0.00018306,2]
[365270919,1749570661016,-1094.0491748,0.00018314,2]
[365270920,1749570661025,-492.0,0.00018327,2]
[365270921,1749570661034,-886.14,0.0001834,2]
[365270922,1749570661043,-454.85,0.00018361,2]
[365270923,1749570661053,-909.28,0.00018361,2]
[365270924,1749570661062,-909.1,0.00018361,2]
[365270925,1749570661071,-454.85,0.00018361,2]
[365270926,1749570661080,-453.45,0.00018361,2]
[365270927,1749570661089,-1094.0491748,0.00018383,2]
[365270928,1749570661099,-531.46368335,0.00018408,2]
[365270929,1749570661108,-158.450287,0.0001841,2]
[365270930,1749570661118,-158.450287,0.0001841,2]
[365270931,1749570661127,-401.88123,0.0001841,2]
[365270932,1749570661136,-401.881232,0.0001841,2]
[365270933,1749570661145,-151.0,0.0001841,2]
[365270934,1749570661155,-151.0,0.0001841,2]
[365270935,1749570661164,-151.0,0.0001841,2]
[365270936,1749570661173,-273.622342,0.0001841,2]
[365270937,1749570661182,-273.622342,0.0001841,2]
[365270938,1749570661191,-151.0,0.0001841,2]
[365270939,1749570661201,-151.0,0.0001841,2]
[365270940,1749570661212,-283.910702,0.0001841,2]
[365270941,1749570661221,-283.910702,0.0001841,2]
[365270942,1749570661231,-251.287677,0.0001841,2]
[365270943,1749570661241,-251.287677,0.0001841,2]
[365270944,1749570661250,-151.0,0.0001841,2]
[365270945,1749570661260,-151.0,0.0001841,2]
[365270946,1749570661269,-409.68,0.0001841,2]
[365270947,1749570661279,-409.68,0.0001841,2]
[365270948,1749570661288,-151.0,0.0001841,2]
[365270949,1749570661297,-151.0,0.0001841,2]
[365270950,1749570661306,-151.0,0.0001841,2]
[365270951,1749570661316,-151.0,0.0001841,2]
[365270952,1749570661325,-255.54258,0.0001841,2]
[365270953,1749570661335,-212.855355,0.0001841,2]
[365270954,1749570661344,-212.855351,0.0001841,2]
[365270955,1749570661354,-162.517009,0.0001841,2]
[365270956,1749570661363,-162.517013,0.0001841,2]
[365270957,1749570661372,-532.008873,0.0001841,2]
[365270958,1749570661382,-532.008871,0.0001841,2]
[365270959,1749570661391,-170.29964,0.0001841,2]
[365270960,1749570661400,-170.299646,0.0001841,2]
[365270961,1749570661409,-151.0,0.0001841,2]
[365270962,1749570661419,-151.0,0.0001841,2]
[365270963,1749570661429,-151.0,0.0001841,2]
[365270964,1749570661438,-472.618288,0.0001841,2]
[365270965,1749570661448,-472.61828,0.0001841,2]
[365270966,1749570661457,-151.0,0.0001841,2]
[365270967,1749570661466,-354.435439,0.0001841,2]
[365270968,1749570661475,-354.435437,0.0001841,2]
[365270969,1749570661488,-490.0,0.0001841,2]
[365270970,1749570661498,-603.49,0.0001841,2]
[365270971,1749570661507,-473.59,0.0001841,2]
[365270972,1749570661516,-642.66,0.0001841,2]
[365270973,1749570661526,-505.25,0.0001841,2]
[365270974,1749570661536,-983.05,0.0001841,2]
[365270975,1749570661546,-490.0,0.0001841,2]
[365270976,1749570661555,-980.31,0.0001841,2]
[365270977,1749570661565,-490.0,0.0001841,2]
[365270978,1749570661575,-490.0,0.0001841,2]
[365270979,1749570661584,-2100.58,0.0001841,2]
[365270980,1749570661593,-490.0,0.0001841,2]
[365270981,1749570661603,-490.0,0.0001841,2]
[365270982,1749570661612,-490.0,0.0001841,2]
[365270983,1749570661622,-490.0,0.0001841,2]
[365270984,1749570661632,-612.37,0.0001841,2]
[365270985,1749570661642,-490.0,0.0001841,2]
[365270986,1749570661651,-490.0,0.0001841,2]
[365270987,1749570661661,-520.05,0.0001841,2]
[365270988,1749570661671,-1277.47,0.0001841,2]
[365270989,1749570661680,-2101.06,0.0001841,2]
[365270990,1749570661690,-1048.02,0.0001841,2]
[365270991,1749570661701,-490.0,0.0001841,2]
[365270992,1749570661711,-490.0,0.0001841,2]
[365270993,1749570661721,-490.0,0.0001841,2]
[365270994,1749570661731,-9735.04,0.0001841,2]
[365270995,1749570661950,-360.44776163,0.0001841,2]
[365270996,1749570661960,-458.14,0.0001841,2]
[365270997,1749570661970,-490.0,0.0001841,2]
[365270998,1749570661980,-1958.36,0.0001841,2]
[365270999,1749570661989,-505.2,0.0001841,2]
[365271000,1749570661999,-1094.0491748,0.00018452,2]
[365271001,1749570662008,-3330.0,0.0001847,2]
[365271002,1749570662019,-945.0,0.0001847,2]
[365271003,1749570662029,-802.0,0.0001847,2]
[365271004,1749570662038,-637.0,0.0001847,2]
[365271005,1749570662047,-1159.0,0.0001847,2]
[365271006,1749570662057,-927.0,0.0001847,2]
[365271007,1749570662066,-1275.0,0.0001847,2]
[365271008,1749570662075,-558.0,0.0001847,2]
[365271009,1749570662085,-590.0,0.0001847,2]
[365271010,1749570662095,-2001.0,0.0001847,2]
[365271011,1749570662105,-1256.0,0.0001847,2]
[365271012,1749570662114,-3796.52,0.000185,2]
[365271013,1749570662124,-1951.547594,0.00018504,2]
[365271014,1749570662134,-7064.0,0.00018506,2]
[365271015,1749570662143,-853.0,0.00018506,2]
[365271016,1749570662152,-155.0,0.00018506,2]
[365271017,1749570662162,-883.0,0.00018506,2]
[365271018,1749570662172,-500.0,0.00018515,2]
[365271019,1749570662182,-796.87,0.00018519,2]
[365271020,1749570662191,-258.876173,0.00018519,2]
[365271021,1749570662201,-258.876173,0.00018519,2]
[365271022,1749570662211,-196.879594,0.00018519,2]
[365271023,1749570662221,-196.879594,0.00018519,2]
[365271024,1749570662231,-151.0,0.00018519,2]
[365271025,1749570662241,-500.0,0.00018521,2]
[365271026,1749570662251,-1094.0491748,0.00018521,2]
[365271027,1749570662260,-492.0,0.0001853,2]
[365271028,1749570662270,-492.0,0.00018532,2]
[365271029,1749570662279,-2163.0367081,0.00018563,2]
[365271030,1749570662289,-593.8417324,0.00018563,2]
[365271031,1749570662299,-309.77074437,0.00018567,2]
[365271032,1749570662307,-152.0,0.00018572,5]
[365271033,1749570662317,-151.0,0.00018575,2]
[365271034,1749570662326,-151.0,0.00018575,2]
[365271035,1749570662335,-273.622342,0.00018575,2]
[365271036,1749570662347,-273.622342,0.00018575,2]
[365271037,1749570662356,-163.309374,0.00018575,2]
[365271038,1749570662366,-151.0,0.00018575,2]
[365271039,1749570662376,-315.40722054,0.00018575,2]
[365271040,1749570662385,-603.49,0.00018575,2]
[365271041,1749570662395,-642.66,0.00018575,2]
[365271042,1749570662407,-983.05,0.00018575,2]
[365271043,1749570662416,-490.0,0.00018575,2]
[365271044,1749570662426,-980.31,0.00018575,2]
[365271045,1749570662436,-490.0,0.00018575,2]
[365271046,1749570662448,-490.0,0.00018575,2]
[365271047,1749570662457,-2100.58,0.00018575,2]
[365271048,1749570662468,-490.0,0.00018575,2]
[365271049,1749570662479,-490.0,0.00018575,2]
[365271050,1749570662489,-490.0,0.00018575,2]
[365271051,1749570662499,-490.0,0.00018575,2]
[365271052,1749570662508,-612.37,0.00018575,2]
[365271053,1749570662519,-490.0,0.00018575,2]
[365271054,1749570662531,-490.0,0.00018575,2]
[365271055,1749570662541,-520.05,0.00018575,2]
[365271056,1749570662552,-1277.47,0.00018575,2]
[365271057,1749570662561,-2101.06,0.00018575,2]
[365271058,1749570662571,-1048.02,0.00018575,2]
[365271059,1749570662580,-513.31911616,0.00018575,2]
[365271060,1749570662589,-490.0,0.00018575,2]
[365271061,1749570662598,-490.0,0.00018575,2]
[365271062,1749570662607,-9735.04,0.00018575,2]
[365271063,1749570662617,-490.0,0.00018575,2]
[365271064,1749570662626,-1958.36,0.00018575,2]
[365271065,1749570662635,-505.2,0.00018575,2]
[365271066,1749570662645,-500.0,0.00018576,2]
[365271067,1749570662654,-390.92406,0.00018576,2]
[365271068,1749570662664,-390.92406,0.00018576,2]
[365271069,1749570662673,-990.97282202,0.0001858,2]
[365271070,1749570662683,-1000.0,0.00018581,2]
[365271071,1749570662693,-1094.0491748,0.0001859,2]
[365271072,1749570662705,-151.0,0.00018657,2]
[365271073,1749570662715,-283.910702,0.00018657,2]
[365271074,1749570662724,-283.910694,0.00018657,2]
[365271075,1749570662733,-151.0,0.00018657,2]
[365271076,1749570662743,-409.68,0.00018657,2]
[365271077,1749570662753,-409.68,0.00018657,2]
[365271078,1749570662763,-151.0,0.00018657,2]
[365271079,1749570662773,-151.0,0.00018657,2]
[365271080,1749570662783,-1094.0491748,0.00018659,2]
[365271081,1749570662792,-251.287677,0.00018659,2]
[365271082,1749570662801,-251.287672,0.00018659,2]
[365271083,1749570662811,-1037.00642053,0.00018667,2]
[365271084,1749570662820,-639.77974476,0.00018682,2]
[365271085,1749570662830,-492.0,0.00018688,2]
[365271086,1749570662839,-6183.75,0.000187,2]
[365271087,1749570662848,-3663.75,0.000187,2]
[365271088,1749570662858,-1876.89,0.000187,2]
[365271089,1749570662867,-580.4385485,0.00018726,2]
[365271090,1749570662876,-567.0353647,0.00018726,2]
[365271091,1749570662885,-553.6321809,0.00018726,2]
[365271092,1749570662894,-540.228997,0.00018726,2]
[365271093,1749570663091,-1094.0491748,0.00018728,2]
[365271094,1749570663101,-158.450287,0.00018739,2]
[365271095,1749570663110,-158.450287,0.00018739,2]
[365271096,1749570663119,-151.0,0.00018739,2]
[365271097,1749570663128,-151.0,0.00018739,2]
[365271098,1749570663138,-273.622342,0.00018739,2]
[365271099,1749570663147,-273.622342,0.00018739,2]
[365271100,1749570663158,-258.876173,0.00018739,2]
[365271101,1749570663168,-258.876173,0.00018739,2]
[365271102,1749570663178,-196.879594,0.00018739,2]
[365271103,1749570663187,-196.879594,0.00018739,2]
[365271104,1749570663200,-151.0,0.00018739,2]
[365271105,1749570663209,-151.0,0.00018739,2]
[365271106,1749570663219,-603.49,0.00018739,2]
[365271107,1749570663229,-642.66,0.00018739,2]
[365271108,1749570663239,-983.05,0.00018739,2]
[365271109,1749570663248,-490.0,0.00018739,2]
[365271110,1749570663258,-980.31,0.00018739,2]
[365271111,1749570663267,-490.0,0.00018739,2]
[365271112,1749570663277,-490.0,0.00018739,2]
[365271113,1749570663286,-2100.58,0.00018739,2]
[365271114,1749570663296,-490.0,0.00018739,2]
[365271115,1749570663305,-628.52,0.00018739,2]
[365271116,1749570663314,-222.8,0.00018739,2]
[365271117,1749570663324,-490.0,0.00018739,2]
[365271118,1749570663333,-612.37,0.00018739,2]
[365271119,1749570663342,-490.0,0.00018739,2]
[365271120,1749570663351,-490.0,0.00018739,2]
[365271121,1749570663361,-520.05,0.00018739,2]
[365271122,1749570663370,-1277.47,0.00018739,2]
[365271123,1749570663387,-2101.06,0.00018739,2]
[365271124,1749570663397,-1048.02,0.00018739,2]
[365271125,1749570663406,-436.73412362,0.00018739,2]
[365271126,1749570663415,-490.0,0.00018739,2]
[365271127,1749570663425,-9735.04,0.00018739,2]
[365271128,1749570663434,-490.0,0.00018739,2]
[365271129,1749570663444,-1958.36,0.00018739,2]
[365271130,1749570663454,-505.2,0.00018739,2]
[365271131,1749570663463,-234.0,0.00018749,6]
[365271132,1749570663474,-1094.0491748,0.00018797,2]
[365271133,1749570663487,-833.29909032,0.000188,3]
[365271134,1749570663496,-245.0,0.00018808,2]
[365271135,1749570663507,-151.0,0.00018808,2]
[365271136,1749570663519,-492.0,0.00018816,2]
[365271137,1749570663530,-150.0,0.00018825,2]
[365271138,1749570663539,-150.0,0.00018825,2]
[365271139,1749570663550,-150.0,0.00018825,2]
[365271140,1749570663561,-150.0,0.00018825,2]
[365271141,1749570663574,-154.33,0.00018825,2]
[365271142,1749570663584,-150.161,0.00018825,2]
[365271143,1749570663597,-1094.0491748,0.00018866,2]
[365271144,1749570663614,-309.77074437,0.000189,2]
[365271145,1749570663625,-151.0,0.00018904,2]
[365271146,1749570663636,-409.68,0.00018904,2]
[365271147,1749570663647,-409.68,0.00018904,2]
[365271148,1749570663658,-151.0,0.00018904,2]
[365271149,1749570663668,-151.0,0.00018904,2]
[365271150,1749570663677,-603.49,0.00018904,2]
[365271151,1749570663688,-642.66,0.00018904,2]
[365271152,1749570663700,-983.05,0.00018904,2]
[365271153,1749570663709,-490.0,0.00018904,2]
[365271154,1749570663719,-980.31,0.00018904,2]
[365271155,1749570663729,-490.0,0.00018904,2]
[365271156,1749570663740,-490.0,0.00018904,2]
[365271157,1749570663750,-2100.58,0.00018904,2]
[365271158,1749570663760,-490.0,0.00018904,2]
[365271159,1749570663770,-490.0,0.00018904,2]
[365271160,1749570663779,-612.37,0.00018904,2]
[365271161,1749570663789,-490.0,0.00018904,2]
[365271162,1749570663799,-490.0,0.00018904,2]
[365271163,1749570663808,-520.05,0.00018904,2]
[365271164,1749570663818,-1277.47,0.00018904,2]
[365271165,1749570663828,-2101.06,0.00018904,2]
[365271166,1749570663838,-1048.02,0.00018904,2]
[365271167,1749570663848,-490.0,0.00018904,2]
[365271168,1749570663858,-9735.04,0.00018904,2]
[365271169,1749570663868,-490.0,0.00018904,2]
[365271170,1749570663879,-1958.36,0.00018904,2]
[365271171,1749570663889,-505.2,0.00018904,2]
[365271172,1749570663899,-500.0,0.00018904,2]
[365271173,1749570663909,-500.0,0.00018904,2]
[365271174,1749570663919,-158.450287,0.00018921,2]
[365271175,1749570663928,-158.450295,0.00018921,2]
[365271176,1749570663937,-152.0,0.00018933,6]
[365271177,1749570663950,-1094.0491748,0.00018934,2]
[365271178,1749570663960,-483.93,0.00018958,2]
[365271179,1749570663970,-201.55085172,0.00018973,2]
[365271180,1749570663979,-500.0,0.00018973,2]
[365271181,1749570663989,-159.88722823,0.00018973,2]
[365271182,1749570663999,-500.0,0.00018973,2]
[365271183,1749570664009,-500.0,0.00018973,2]
[365271184,1749570664019,-500.0,0.00018973,2]
[365271185,1749570664035,-500.0,0.00018973,2]
[365271186,1749570664044,-1000.0,0.00018976,2]
[365271187,1749570664054,-443.88781892,0.00018976,2]
[365271188,1749570664063,-2318.6038598,0.00018987,2]
[365271189,1749570664073,-29610.80897606,0.00019,3]
[365271190,1749570664082,-167720.3446809,0.00019,3]
[365271191,1749570664109,-490.0,0.00016602,2]
[365271192,1749570664120,-6893.8,0.00019,3]
[365271193,1749570664131,-3375.099735,0.00019,3]
[365271194,1749570664142,-48917.6503689,0.00019,3]
[365271195,1749570664154,-34976.69849685,0.00019,3]
[365271196,1749570664165,-1567.66651499,0.00019,3]
[365271197,1749570664176,-601.68142546,0.00019,3]
[365271198,1749570664188,-1176.26385976,0.00019,3]
[365271199,1749570664200,-451.5142209,0.00019,3]
[365271200,1749570664212,-979.8765856,0.00019,3]
[365271201,1749570664246,-490.0,0.00016438,2]
[365271202,1749570664256,-490.0,0.00017095,2]
[365271203,1749570664267,-490.0,0.00017753,2]
[365271204,1749570664277,-151.0,0.00018,2]
[365271205,1749570664287,-2989199.38121232,0.00019,3]
[365271206,1749570664647,-490.0,0.00016438,2]
[365271207,1749570664656,-490.0,0.00016602,2]
[365271208,1749570664665,-490.0,0.00016767,2]
[365271209,1749570664675,-571.22,0.00016767,2]
[365271210,1749570664684,-490.0,0.00016931,2]
[365271211,1749570664693,-597.10610025,0.00017095,2]
[365271212,1749570664704,-490.0,0.0001726,2]
[365271213,1749570664714,-151.0,0.00017423,2]
[365271214,1749570664723,-490.0,0.00017424,2]
[365271215,1749570664732,-151.0,0.00017439,2]
[365271216,1749570664742,-490.0,0.00017589,2]
[365271217,1749570664758,-490.0,0.00017753,2]
[365271218,1749570664774,-298.46707076,0.000179,2]
[365271219,1749570664787,-316.72,0.00017917,2]
[365271220,1749570664800,-490.0,0.00017917,2]
[365271221,1749570664815,-151.0,0.00018,2]
[365271222,1749570664830,-490.0,0.00018082,2]
[365271223,1749570664844,-490.0,0.00018246,2]
[365271224,1749570664857,-490.0,0.0001841,2]
[365271225,1749570664870,-4085.0,0.00018506,2]
[365271226,1749570664883,-73174.95375381,0.00019,3]
[365271227,1749570664899,-5979.05,0.00019,3]
[365271228,1749570664916,-447105.48453529,0.00019,3]
[365271229,1749570664933,-23013.54635055,0.00019,3]
[365271230,1749570664957,-319.6,0.00018575,2]
[365271231,1749570664972,-18818.41502504,0.00019,3]
[365271232,1749570664989,-634.09692111,0.00019,3]
[365271233,1749570665005,-325.5252,0.00019,3]
[365271234,1749570665109,353.0,0.00015611,2]
[365271235,1749570666847,-490.0,0.00016438,2]
[365271236,1749570666858,-490.0,0.00016438,2]
[365271237,1749570666867,-490.0,0.00016438,2]
[365271238,1749570666877,-490.0,0.00016602,2]
[365271239,1749570666888,-239.47356747,0.00017289,2]
[365271240,1749570666897,-198.01050839,0.00017289,2]
[365271241,1749570666906,-796.87,0.0001756,2]
[365271242,1749570666915,-151.0,0.00017589,2]
[365271243,1749570666926,-151.0,0.00017753,2]
[365271244,1749570666935,-500.0,0.00017808,2]
[365271245,1749570666945,-500.0,0.00017808,2]
[365271246,1749570666955,-500.0,0.00017808,2]
[365271247,1749570666965,-179.14805712,0.00017808,2]
[365271248,1749570666975,-500.0,0.00017808,2]
[365271249,1749570666984,-500.0,0.00017808,2]
[365271250,1749570666993,-500.0,0.00017808,2]
[365271251,1749570667003,-151.0,0.000179,2]
[365271252,1749570667013,-151.0,0.00018,2]
[365271253,1749570667022,-99641.69559904,0.00019,3]
[365271254,1749570667033,-1893.76526472,0.00019,3]
[365271255,1749570667045,-2036.74119263,0.00019,3]
[365271256,1749570667056,-4900.962514,0.00019,3]
[365271257,1749570667080,-302.76,0.00016767,2]
[365271258,1749570667089,-674367.80230208,0.00019,3]
[365271259,1749570667098,-6183.75,0.00019,2]
[365271260,1749570667107,-6183.75,0.00019,2]
[365271261,1749570667117,-3663.75,0.00019,2]
[365271262,1749570667126,-3663.75,0.00019,2]
[365271263,1749570667136,-1876.89,0.00019,2]
[365271264,1749570667145,-1876.89,0.00019,2]
[365271265,1749570667154,-66708.58599763,0.00019,12]
[365271266,1749570667164,-3121.21979232,0.00019,2]
[365271267,1749570667174,-1500.0,0.00019,4]
[365271268,1749570667183,-163.0,0.00019,3]
[365271269,1749570667192,-163.0,0.00019,3]
[365271270,1749570667203,-163.0,0.00019,3]
[365271271,1749570667212,-164.88,0.00019,4]
[365271272,1749570667221,-534.43869582,0.00019,2]
[365271273,1749570667231,-407.24,0.00019,7]
[365271274,1749570667239,-500.0,0.00019,7]
[365271275,1749570667250,-500.0,0.00019,7]
[365271276,1749570667259,-500.0,0.00019,7]
[365271277,1749570667268,-500.0,0.00019,7]
[365271278,1749570667278,-500.0,0.00019,7]
[365271279,1749570667287,-500.0,0.00019,7]
[365271280,1749570667296,-475.4,0.00019,7]
[365271281,1749570667305,-151.0,0.00019,2]
[365271282,1749570667315,-151.0,0.00019,2]
[365271283,1749570667324,-273.622342,0.00019,2]
[365271284,1749570667335,-273.622342,0.00019,2]
[365271285,1749570667344,-273.622342,0.00019,2]
[365271286,1749570667353,-273.622352,0.00019,2]
[365271287,1749570667363,-258.876173,0.00019,2]
[365271288,1749570667372,-258.876174,0.00019,2]
[365271289,1749570667382,-196.879594,0.00019,2]
[365271290,1749570667391,-196.87959,0.00019,2]
[365271291,1749570667401,-228.26,0.00019,7]
[365271292,1749570667410,-187.49,0.00019,7]
[365271293,1749570667419,-151.0,0.00019,2]
[365271294,1749570667428,-151.0,0.00019,2]
[365271295,1749570667438,-207.122636,0.00019,2]
[365271296,1749570667447,-85458.34208706,0.00019,2]
[365271297,1749570667457,-219052.14003247,0.00019,2]
[365271298,1749570667467,-294.73,0.00019,7]